fUSD/lending_fUSD_20240701
["ID","MTS","AMOUNT","RATE_DAILY","PERIOD"]
[330826643,1719847833984,-550.0,0.00013999,2]
[330826644,1719847833994,-500.0,0.00013999,2]
[330826645,1719847834004,-500.0,0.00013999,2]
[330826646,1719847834013,-460.60110964,0.00013999,2]
[330826647,1719847834023,-500.0,0.00013999,2]
[330826648,1719847834032,-500.0,0.00013999,2]
[330826649,1719847834042,-500.0,0.00013999,2]
[330826650,1719847834053,-500.0,0.00013999,2]
[330826651,1719847834062,-253.21666728,0.00013999,2]
[330826652,1719847834072,-500.0,0.00013999,2]
[330826653,1719847834081,-500.0,0.00013999,2]
[330826654,1719847834091,-500.0,0.00013999,2]
[330826655,1719847834101,-49110.64631765,0.00013999,2]
[330826656,1719847834110,-155.0,0.00013999,2]
[330826657,1719847834119,-1401.70339969,0.00014,2]
[330826658,1719847834131,-521.124372,0.00014,2]
[330826659,1719847834168,-482.94425018,0.00014,2]
[330826660,1719847834179,-3111.40281369,0.00014,2]
[330826661,1719847834223,-63092.81087953,0.00014,2]
[330826662,1719847834235,-4667.47387818,0.00014,2]
[330826663,1719847834247,-688302.92989564,0.00014,2]
[330826664,1719847834257,-1242.56190182,0.00014,2]
[330826665,1719847834266,-200.0,0.00014,2]
[330826666,1719847834275,-500.0,0.00014,2]
[330826667,1719847834285,-500.0,0.00014,2]
[330826668,1719847834294,-500.0,0.00014,2]
[330826669,1719847834304,-500.0,0.00014,2]
[330826670,1719847834314,-500.0,0.00014,2]
[330826671,1719847834323,-500.0,0.00014,2]
[330826672,1719847834332,-500.0,0.00014,2]
[330826673,1719847834341,-500.0,0.00014,2]
[330826674,1719847834351,-500.0,0.00014,2]
[330826675,1719847834360,-657.0,0.00014,2]
[330826676,1719847834369,-200.0,0.00014,2]
[330826677,1719847834378,-2000.0,0.00014,2]
[330826678,1719847834388,-200.0,0.00014,2]
[330826679,1719847834397,-200.0,0.00014,2]
[330826680,1719847834406,-226.5848512,0.00014099,2]
[330826681,1719847834415,-200.0,0.0001414,2]
[330826682,1719847834424,-200.0,0.0001414,2]
[330826683,1719847834434,-2000.0,0.0001414,2]
[330826684,1719847834443,-200.0,0.0001414,2]
[330826685,1719847834453,-200.0,0.0001414,2]
[330826686,1719847834463,-893.08502989,0.00014181,2]
[330826687,1719847834472,-169.88866675,0.00014181,2]
[330826688,1719847834481,-169.08322514,0.00014181,2]
[330826689,1719847834491,-164.32613462,0.00014181,2]
[330826690,1719847834500,-3868.57942916,0.00014181,2]
[330826691,1719847834509,-500.0,0.0001428,2]
[330826692,1719847834518,-500.0,0.0001428,2]
[330826693,1719847834528,-497.98557785,0.0001428,2]
[330826694,1719847834537,-253.82403231,0.0001428,2]
[330826695,1719847834549,-500.0,0.0001428,2]
[330826696,1719847834558,-572.5299041,0.0001428,2]
[330826697,1719847834567,-500.0,0.0001428,2]
[330826698,1719847834576,-403.37394458,0.0001428,2]
[330826699,1719847834586,-84726.2208473,0.00014281,7]
[330826700,1719847834596,-195777.569591,0.00014281,7]
[330826701,1719847834609,-200.0,0.00014281,2]
[330826702,1719847834618,-200.0,0.00014281,2]
[330826703,1719847834627,-2000.0,0.00014281,2]
[330826704,1719847834636,-200.0,0.00014281,2]
[330826705,1719847834645,-200.0,0.00014281,2]
[330826706,1719847834656,-547.02587969,0.00014322,2]
[330826707,1719847835002,290.97986156,0.00011199,2]
[330826711,1719847838472,-155.65681678,0.00012302,2]
[330826714,1719847838482,-533.28582048,0.00012302,2]
[330826715,1719847838491,-252.97412031,0.00014322,2]
[330826716,1719847838501,-357.77613,0.0001438,2]
[330826717,1719847838511,-200.0,0.00014424,2]
[330826718,1719847838521,-200.0,0.00014424,2]
[330826720,1719847838755,-2000.0,0.00014424,2]
[330826721,1719847838765,-200.0,0.00014424,2]
[330826722,1719847838775,-200.0,0.00014424,2]
[330826723,1719847838785,-155.0,0.00014499,2]
[330826725,1719847838793,-500.0,0.00014519,2]
[330826727,1719847838806,-200.0,0.00014568,2]
[330826729,1719847838816,-200.0,0.00014568,2]
[330826731,1719847838827,-2000.0,0.00014568,2]
[330826734,1719847838838,-200.0,0.00014568,2]
[330826735,1719847838847,-200.0,0.00014568,2]
[330826736,1719847838857,-3208.60885112,0.0001478,2]
[330826737,1719847838866,-5731.42448395,0.00014789,2]
[330826738,1719847838875,-1341.41519294,0.00014849,2]
[330826739,1719847838884,-499.99,0.00014849,2]
[330826740,1719847838893,-3868.57942915,0.00014928,2]
[330826741,1719847838902,-227.0716558,0.00014973,2]
[330826742,1719847838911,-227.0716558,0.00014973,2]
[330826743,1719847838920,-281.3,0.0001499,3]
[330826744,1719847838929,-3780.688064,0.00014999,2]
[330826745,1719847838939,-276.10780549,0.00014999,2]
[330826746,1719847838948,-4106.09664335,0.00015,2]
[330826748,1719847839187,-4069.7644186,0.00015,2]
[330826749,1719847839199,-224220.07942192,0.00015,2]
[330826750,1719847839211,-1275.15327242,0.00015,2]
[330826751,1719847839224,-7815.20744096,0.00015,2]
[330826752,1719847839235,-773.98117711,0.00015,2]
[330826753,1719847839245,-357.77614,0.00015,2]
[330826754,1719847839256,-169.87,0.00015068,2]
[330826755,1719847839266,-593.82,0.00015222,2]
[330826756,1719847839276,-200.0,0.00015289,2]
[330826758,1719847839286,-376.41211942,0.0001536,3]
[330826759,1719847839298,-86.90788058,0.0001536,3]
[330826760,1719847839308,-450.32528097,0.00015399,2]
[330826761,1719847839318,-271.0,0.000154,3]
[330826762,1719847839328,-1719.17281515,0.00015479,2]
[330826763,1719847839340,-1173.56700628,0.00015479,2]
[330826764,1719847839352,-130.07726061,0.00015479,2]
[330826765,1719847839362,-307.59113526,0.00015479,2]
[330826766,1719847839372,-298.92947542,0.000156,2]
[330826767,1719847839382,-357.77613,0.0001563,2]
[330826768,1719847839392,-3208.60885112,0.00015659,2]
[330826769,1719847839402,-167.92599671,0.00015675,2]
[330826770,1719847839413,-710.733,0.00015675,2]
[330826771,1719847839426,-2989.92043244,0.00015675,2]
[330826772,1719847839436,-2651.77989377,0.00015678,2]
[330826773,1719847839449,-347.45730963,0.00015678,2]
[330826774,1719847839460,-411.09598507,0.00015678,2]
[330826775,1719847839473,-250.39418971,0.00015678,2]
[330826776,1719847839485,-2070.69710577,0.00015678,2]
[330826777,1719847839495,-841.0,0.000157,2]
[330826778,1719847839504,-3335.0,0.000157,2]
[330826779,1719847839514,-11482.0,0.000158,5]
[330826780,1719847839523,-713.71069883,0.00015909,2]
[330826791,1719847841159,-6525.1673043,0.00015909,2]
[330826792,1719847841169,-800.0,0.00015913,2]
[330826793,1719847841179,-357.77614,0.0001625,2]
[330826794,1719847841189,-562.6,0.0001636,3]
[330826795,1719847841198,-176.5,0.00016387,2]
[330826796,1719847841208,-3868.57942915,0.00016423,2]
[330826797,1719847841217,-169.87,0.00016438,2]
[330826798,1719847841228,-150.0,0.00016473,2]
[330826799,1719847841238,-1986.0,0.00016473,2]
[330826800,1719847841248,-3196.0,0.00016473,2]
[330826801,1719847841257,-547.0,0.00016473,2]
[330826802,1719847841267,-1081.122,0.00016473,2]
[330826803,1719847841276,-1312.48,0.00016473,2]
[330826804,1719847841285,-1830.0,0.00016473,2]
[330826805,1719847841295,-291.0,0.00016473,2]
[330826806,1719847841304,-1272.0,0.00016473,2]
[330826807,1719847841315,-1655.0,0.00016473,2]
[330826808,1719847841324,-360.0,0.00016473,2]
[330826809,1719847841334,-5172.0,0.00016473,2]
[330826810,1719847841344,-1196.0,0.00016473,2]
[330826811,1719847841354,-3208.60885112,0.00016539,2]
[330826812,1719847841363,-5731.42448395,0.00016567,2]
[330826813,1719847841372,-357.77613,0.0001688,2]
[330826814,1719847841381,-200.0,0.00016987,2]
[330826815,1719847841390,-3868.57942915,0.0001717,2]
[330826816,1719847841399,-298.92947542,0.000173,2]
[330826817,1719847841408,-3208.60885112,0.00017419,2]
[330826818,1719847841418,-5731.42448395,0.00017456,2]
[330826819,1719847841427,-593.82,0.00017486,2]
[330826820,1719847841436,-800.0,0.00017505,2]
[330826821,1719847841445,-570.2051663,0.00017917,2]
[330826822,1719847841457,-3298.37426285,0.00017917,2]
[330826823,1719847841466,-60.45813655,0.00018,2]
[330826824,1719847841478,-123.3351191,0.00018,2]
[330826825,1719847841488,-151.0,0.00018,2]
[330826826,1719847841497,-5.9234157,0.00018,2]
[330826828,1719847841509,-145.0765843,0.00018,2]
[330826830,1719847841518,-151.0,0.00018,2]
[330826832,1719847841528,-151.0,0.00018,2]
[330826833,1719847841537,-151.0,0.00018,2]
[330826835,1719847841547,-151.0,0.00018,2]
[330826836,1719847841558,-151.131279,0.00018,2]
[330826837,1719847841567,-151.0,0.00018,2]
[330826838,1719847841576,-151.0,0.00018,2]
[330826839,1719847841585,-169.08322514,0.00018041,2]
[330826840,1719847841595,-3208.60885112,0.00018298,2]
[330826841,1719847841610,-3177.9869963,0.00018344,2]
[330826842,1719847842116,-2553.43748765,0.00018344,2]
[330826843,1719847842125,-3868.57942915,0.00018664,2]
[330826844,1719847842134,-151.0,0.00018673,2]
[330826845,1719847842143,-151.0,0.00018673,2]
[330826846,1719847842152,-151.0,0.00018673,2]
[330826847,1719847842161,-151.0,0.00018673,2]
[330826848,1719847842170,-151.0,0.00018673,2]
[330826849,1719847842179,-82.98308328,0.00018673,2]
[330826850,1719847842190,-68.01691672,0.00018673,2]
[330826851,1719847842199,-151.0,0.00018673,2]
[330826852,1719847842208,-151.0,0.00018673,2]
[330826853,1719847842217,-200.0,0.00018686,2]
[330826854,1719847842229,-151.40765948,0.00018789,2]
[330826855,1719847842239,-1132.2719482,0.00018849,30]
[330826856,1719847842250,-485.3980518,0.00018849,30]
[330826857,1719847842260,-165.46569143,0.00018876,2]
[330826858,1719847842269,-158.09,0.000189,2]
[330826859,1719847842279,-298.92947542,0.00019,2]
[330826860,1719847842288,-185.24927032,0.00019096,2]
[330826880,1719847843744,-487.55,0.00016473,2]
[330826886,1719847844062,-930.552031,0.00016473,2]
[330826887,1719847844074,-5935.63173154,0.00016473,2]
[330826888,1719847844085,-633.56217276,0.00016473,2]
[330826889,1719847844097,-2275.99530937,0.00016473,2]
[330826905,1719847846887,-2200.029088,0.00016473,2]
[330826906,1719847847203,-24460.67966733,0.00016473,2]
[330826907,1719847847213,-1663.0,0.00016473,2]
[330826908,1719847847223,-211.80129193,0.00018,2]
[330826909,1719847847235,-614.75072968,0.00019096,2]
[330826910,1719847847245,-3208.60885112,0.00019178,2]
[330826911,1719847847254,-377.86,0.00019178,2]
[330826912,1719847847264,-150.42,0.00019178,2]
[330826913,1719847847274,-250.0,0.00019178,2]
[330826914,1719847847283,-500.0,0.000192,7]
[330826915,1719847847292,-5731.42448395,0.00019233,2]
[330826916,1719847847301,-174.58594608,0.00019299,2]
[330826918,1719847847312,-151.0,0.0001936,2]
[330826920,1719847847321,-151.0,0.0001936,2]
[330826922,1719847847332,-151.0,0.0001936,2]
[330826924,1719847847341,-282.582379,0.0001936,2]
[330826926,1719847847351,-151.0,0.0001936,2]
[330826928,1719847847361,-151.0,0.0001936,2]
[330826930,1719847847371,-154.504842,0.0001936,2]
[330826932,1719847847381,-151.0,0.0001936,2]
[330826934,1719847847391,-151.0,0.0001936,2]
[330826936,1719847847400,-853.83,0.0001936,2]
[330826938,1719847847410,-853.83,0.0001936,2]
[330826939,1719847847419,-853.83,0.0001936,2]
[330826940,1719847847430,-847.39,0.0001936,2]
[330826941,1719847847440,-3868.57942915,0.00019411,2]
[330826942,1719847847449,-150.0,0.00019473,2]
[330826943,1719847847458,-1278.0,0.00019473,2]
[330826944,1719847847468,-1556.017,0.00019473,2]
[330826945,1719847847478,-883.99927536,0.000195,2]
[330826946,1719847847487,-2500.0,0.000195,2]
[330826947,1719847847497,-151.0,0.000195,2]
[330826948,1719847847506,-151.0,0.000195,2]
[330826949,1719847847516,-151.0,0.000195,2]
[330826950,1719847847525,-151.0,0.000195,2]
[330826951,1719847847535,-151.948626,0.000195,2]
[330826952,1719847847544,-151.0,0.000195,2]
[330826953,1719847847554,-499.499,0.00019565,2]
[330826954,1719847847564,-151.0,0.00019642,2]
[330826955,1719847847573,-151.0,0.00019642,2]
[330826956,1719847847582,-151.0,0.00019642,2]
[330826957,1719847847591,-151.0,0.00019642,2]
[330826958,1719847847601,-298.372863,0.00019642,2]
[330826959,1719847847613,-151.0,0.00019642,2]
[330826960,1719847847622,-298.372863,0.00019642,2]
[330826961,1719847847632,-151.0,0.00019642,2]
[330826962,1719847847642,-151.0,0.00019642,2]
[330826963,1719847847652,-151.0,0.00019642,2]
[330826964,1719847847662,-203.122959,0.00019642,2]
[330826965,1719847847671,-203.122959,0.00019642,2]
[330826966,1719847847682,-176.5,0.00019664,2]
[330826967,1719847847692,-520.06850352,0.00019725,2]
[330826968,1719847847702,-593.82,0.00019749,2]
[330826969,1719847847711,-151.0,0.00019863,2]
[330826970,1719847847721,-175.497318,0.00019863,2]
[330826971,1719847847730,-187.382417,0.00019863,2]
[330826972,1719847847740,-175.497318,0.00019863,2]
[330826973,1719847847750,-314.274857,0.00019863,2]
[330826974,1719847847760,-314.274857,0.00019863,2]
[330826975,1719847847770,-151.0,0.00019863,2]
[330826976,1719847847779,-151.0,0.00019863,2]
[330826977,1719847847790,-151.0,0.00019863,2]
[330826978,1719847847799,-151.0,0.00019863,2]
[330826979,1719847847809,-151.0,0.00019863,2]
[330826980,1719847847818,-151.0,0.00019863,2]
[330826981,1719847847828,-151.0,0.00019863,2]
[330826982,1719847847837,-151.0,0.00019863,2]
[330826983,1719847847846,-264.540427,0.00019863,2]
[330826984,1719847847855,-264.540427,0.00019863,2]
[330826985,1719847847863,-151.0,0.00019863,2]
[330826986,1719847847873,-1400.0,0.000199,7]
[330826987,1719847847883,-3340.682169,0.000199,2]
[330826988,1719847847892,-151.0,0.000199,2]
[330826989,1719847847902,-3340.682169,0.000199,2]
[330826990,1719847847911,-333.472375,0.000199,2]
[330826991,1719847847922,-151.0,0.000199,2]
[330826992,1719847847932,-333.472375,0.000199,2]
[330826993,1719847847941,-151.0,0.000199,2]
[330826994,1719847847950,-151.0,0.000199,2]
[330826995,1719847847962,-151.740638,0.000199,2]
[330826996,1719847847972,-151.0,0.000199,2]
[330826997,1719847847981,-240.631836,0.000199,2]
[330826998,1719847847991,-240.631836,0.000199,2]
[330826999,1719847848000,-1000.0,0.0002,2]
[330827000,1719847848009,-188.17121959,0.0002,2]
[330827001,1719847848019,-151.0,0.0002,2]
[330827002,1719847848028,-151.0,0.0002,2]
[330827003,1719847848038,-151.0,0.0002,2]
[330827004,1719847848047,-151.825594,0.0002,2]
[330827005,1719847848057,-151.0,0.0002,2]
[330827006,1719847848067,-151.0,0.0002,2]
[330827007,1719847848077,-867.54923149,0.0002,2]
[330827008,1719847848086,-151.0,0.0002,2]
[330827009,1719847848095,-151.0,0.0002,2]
[330827010,1719847848105,-151.0,0.0002,2]
[330827011,1719847848115,-151.0,0.0002,2]
[330827012,1719847848124,-151.0,0.0002,2]
[330827013,1719847848133,-153.193925,0.0002,2]
[330827014,1719847848142,-151.0,0.0002,2]
[330827015,1719847848151,-151.0,0.0002,2]
[330827016,1719847848160,-151.0,0.0002,2]
[330827017,1719847848169,-151.0,0.0002,2]
[330827018,1719847848179,-151.0,0.0002,2]
[330827019,1719847848188,-151.0,0.0002,2]
[330827020,1719847848198,-151.0,0.0002,2]
[330827021,1719847848207,-151.0,0.0002,2]
[330827022,1719847848216,-406.74189515,0.0002,2]
[330827023,1719847848225,-3208.60885112,0.00020058,2]
[330827024,1719847848236,-716.21074661,0.00020102,2]
[330827025,1719847848246,-5731.42448395,0.00020122,2]
[330827026,1719847848256,-3868.57942915,0.00020158,2]
[330827027,1719847848266,-393.45893172,0.000202,2]
[330827028,1719847848274,-151.0,0.00020267,2]
[330827029,1719847848284,-151.307137,0.00020319,2]
[330827030,1719847848292,-80.04294671,0.00020319,2]
[330827031,1719847848307,-70.95705329,0.00020319,2]
[330827032,1719847848317,-151.0,0.00020319,2]
[330827033,1719847848326,-151.291124,0.00020319,2]
[330827034,1719847848338,-151.0,0.00020319,2]
[330827035,1719847848348,-151.0,0.00020319,2]
[330827036,1719847848357,-151.0,0.00020319,2]
[330827037,1719847848367,-151.0,0.00020319,2]
[330827038,1719847848377,-151.0,0.00020319,2]
[330827039,1719847848387,-151.0,0.00020319,2]
[330827040,1719847848396,-279.668028,0.00020319,2]
[330827041,1719847848406,-279.668028,0.00020319,2]
[330827042,1719847848416,-237.901172,0.00020319,2]
[330827043,1719847848426,-237.901172,0.00020319,2]
[330827044,1719847848435,-500.0,0.00020319,2]
[330827045,1719847848445,-200.0,0.00020385,2]
[330827046,1719847848455,-151.0,0.00020586,2]
[330827047,1719847848464,-298.92947542,0.000207,2]
[330827048,1719847848473,-843.95,0.0002079,3]
[330827049,1719847848483,-151.0,0.000208,2]
[330827050,1719847848492,-151.0,0.000208,2]
[330827051,1719847848502,-165.329841,0.000208,2]
[330827052,1719847848511,-151.0,0.000208,2]
[330827053,1719847848522,-151.0,0.000208,2]
[330827054,1719847848531,-151.0,0.000208,2]
[330827055,1719847848540,-151.0,0.000208,2]
[330827056,1719847848550,-201.0,0.000208,2]
[330827057,1719847848560,-151.0,0.000208,2]
[330827059,1719847848569,-151.0,0.000208,2]
[330827060,1719847848578,-151.0,0.000208,2]
[330827061,1719847848587,-151.0,0.000208,2]
[330827062,1719847848596,-151.0,0.000208,2]
[330827063,1719847848609,-151.0,0.000208,2]
[330827064,1719847848619,-151.0,0.000208,2]
[330827065,1719847848628,-151.0,0.000208,2]
[330827066,1719847848638,-151.0,0.000208,2]
[330827067,1719847848648,-151.0,0.000208,2]
[330827068,1719847848657,-151.0,0.000208,2]
[330827069,1719847848666,-151.0,0.000208,2]
[330827070,1719847848676,-151.0,0.000208,2]
[330827071,1719847848687,-151.0,0.000208,2]
[330827072,1719847848697,-151.0,0.000208,2]
[330827073,1719847848706,-298.372863,0.000208,2]
[330827074,1719847848716,-151.0,0.000208,2]
[330827075,1719847848726,-298.372863,0.000208,2]
[330827076,1719847848735,-151.0,0.000208,2]
[330827077,1719847848745,-151.0,0.000208,2]
[330827078,1719847848754,-151.0,0.000208,2]
[330827079,1719847848763,-203.122959,0.000208,2]
[330827080,1719847848772,-203.122959,0.000208,2]
[330827081,1719847848781,-151.0,0.000208,2]
[330827082,1719847848791,-151.0,0.000208,2]
[330827083,1719847848800,-151.0,0.000208,2]
[330827084,1719847848810,-151.0,0.000208,2]
[330827085,1719847848819,-151.0,0.000208,2]
[330827086,1719847848828,-151.0,0.000208,2]
[330827087,1719847848837,-151.0,0.000208,2]
[330827088,1719847848846,-151.0,0.000208,2]
[330827089,1719847848855,-151.0,0.000208,2]
[330827090,1719847848864,-151.0,0.000208,2]
[330827091,1719847848874,-151.0,0.000208,2]
[330827092,1719847848883,-151.0,0.000208,2]
[330827093,1719847848892,-151.0,0.000208,2]
[330827094,1719847848902,-151.0,0.000208,2]
[330827095,1719847848911,-151.0,0.000208,2]
[330827096,1719847848920,-151.0,0.000208,2]
[330827097,1719847848930,-151.0,0.000208,2]
[330827098,1719847848939,-151.0,0.000208,2]
[330827099,1719847848948,-279.668028,0.000208,2]
[330827100,1719847848958,-279.668028,0.000208,2]
[330827101,1719847848967,-277.195157,0.000208,2]
[330827102,1719847848976,-237.901172,0.000208,2]
[330827103,1719847848985,-237.901172,0.000208,2]
[330827104,1719847848995,-151.0,0.000208,2]
[330827105,1719847849004,-151.0,0.000208,2]
[330827106,1719847849013,-151.0,0.000208,2]
[330827107,1719847849023,-314.153061,0.000208,2]
[330827108,1719847849032,-151.0,0.000208,2]
[330827109,1719847849041,-314.153061,0.000208,2]
[330827110,1719847849051,-151.0,0.000208,2]
[330827111,1719847849061,-151.0,0.000208,2]
[330827112,1719847849070,-151.0,0.000208,2]
[330827113,1719847849079,-663.445431,0.000208,2]
[330827114,1719847849088,-663.445431,0.000208,2]
[330827115,1719847849097,-151.0,0.000208,2]
[330827116,1719847849111,-151.0,0.000208,2]
[330827117,1719847849120,-151.0,0.000208,2]
[330827118,1719847849130,-151.0,0.000208,2]
[330827119,1719847849139,-175.497318,0.000208,2]
[330827120,1719847849148,-175.497318,0.000208,2]
[330827121,1719847849157,-314.274857,0.000208,2]
[330827122,1719847849166,-314.274857,0.000208,2]
[330827123,1719847849176,-151.0,0.000208,2]
[330827124,1719847849185,-151.0,0.000208,2]
[330827125,1719847849194,-151.0,0.000208,2]
[330827126,1719847849204,-67545.46840248,0.000208,2]
[330827168,1719848239526,3967.2200595,0.00011199,2]
[330827169,1719848301702,290.46265469,0.00011199,2]
[330827170,1719848335352,2374.66560642,0.00011199,2]
[330827171,1719848368737,1044.76716236,0.00011199,2]
[330827173,1719848389855,1133.76952232,0.00011199,2]
[330827174,1719848397395,1500.0,0.00011199,2]
[330827178,1719848620426,527.81158355,0.00011199,2]
[330827179,1719848637086,625.50090201,0.00011199,2]
[330827180,1719848644163,660.25476663,0.00011199,2]
[330827181,1719848654098,193.54674215,0.00011199,2]
[330827182,1719848663362,1132.05827255,0.00011199,2]
[330827183,1719848689408,1500.0,0.00011199,2]
[330827185,1719848711881,155.0,0.00011199,2]
[330827186,1719848722974,284.85570489,0.00011199,2]
[330827187,1719848723101,23934.54755633,0.00011199,2]
[330827188,1719848723526,155.0,0.00011199,2]
[330827189,1719848723752,537.93879391,0.00011199,2]
[330827190,1719848724330,380.58928978,0.00011199,2]
[330827191,1719848724620,218.40264018,0.00011199,2]
[330827192,1719848731303,158.01594335,0.00011199,2]
[330827193,1719848734821,155.09426805,0.00011199,2]
[330827194,1719848740168,155.14159365,0.00011199,2]
[330827195,1719848744301,194.02066443,0.00011199,2]
[330827196,1719848748243,202.44445,0.00011199,2]
[330827202,1719848752231,155.14682893,0.00011199,2]
[330827203,1719848753928,155.28848889,0.00011199,2]
[330827204,1719848754829,190.06387519,0.00011199,2]
[330827205,1719848755060,651.15085502,0.00011199,2]
[330827206,1719848755100,196.12854204,0.00011199,2]
[330827207,1719848756704,211.46410949,0.00011199,2]
[330827208,1719848760391,251.69725193,0.00011199,2]
[330827209,1719848764295,195.23754001,0.00011199,2]
[330827210,1719848766175,155.72063344,0.00011199,2]
[330827211,1719848769163,155.46703198,0.00011199,2]
[330827212,1719848769670,305.26949333,0.00011199,2]
[330827213,1719848772527,236.53352134,0.00011199,2]
[330827214,1719848783530,155.0,0.00011199,2]
[330827215,1719848784567,283.44364674,0.00011199,2]
[330827216,1719848786266,158.25040673,0.00011199,2]
[330827217,1719848786313,194.87156642,0.00011199,2]
[330827218,1719848787773,366.11090361,0.00011199,2]
[330827219,1719848797584,202.21267486,0.00011199,2]
[330827220,1719848798011,346.03148912,0.00011199,2]
[330827347,1719849000621,155.0,0.00011199,2]
[330827362,1719849031436,-535.67,0.00011286,2]
[330827363,1719849031446,-150.0,0.00012247,2]
[330827364,1719849031455,-293.10344302,0.00012273,2]
[330827365,1719849031464,-1536.13018865,0.0001251,2]
[330827366,1719849031473,-150.0,0.00012755,2]
[330827367,1719849031483,-300.0,0.00012755,2]
[330827368,1719849031494,-23900.0,0.00012756,2]
[330827369,1719849031503,-162.41,0.00012818,2]
[330827370,1719849031513,-250.0,0.00012891,2]
[330827371,1719849031522,-1852.42,0.00012904,2]
[330827372,1719849031532,-200.0,0.00012967,2]
[330827373,1719849031542,-250.0,0.00012971,2]
[330827374,1719849031551,-1000.0,0.00012982,2]
[330827375,1719849031561,-9131.86816505,0.00013,2]
[330827376,1719849031571,-276.10780549,0.00013128,2]
[330827377,1719849031580,-202.21267486,0.00013472,2]
[330827378,1719849031590,-651.15085502,0.00013472,2]
[330827379,1719849031599,-535.67,0.0001355,2]
[330827380,1719849031609,-496.58,0.00013699,2]
[330827381,1719849031618,-10000.0,0.00013699,2]
[330827382,1719849031628,-165.08264122,0.00013773,2]
[330827383,1719849031638,-300.0,0.000138,5]
[330827384,1719849031648,-43868.41232096,0.0001387,2]
[330827385,1719849031657,-2307.33226055,0.00013899,2]
[330827386,1719849031669,-1388.60597009,0.00013899,2]
[330827387,1719849031678,-1251.2596,0.000139,2]
[330827388,1719849031689,-26434.3915,0.000139,2]
[330827389,1719849031700,-1976.53,0.000139,2]
[330827390,1719849031711,-165.2362,0.000139,2]
[330827391,1719849031720,-4525.5946,0.000139,2]
[330827392,1719849031731,-600.0,0.000139,5]
[330827394,1719849031743,-179.53343583,0.0001392,2]
[330827396,1719849031753,-1790.37153019,0.0001392,2]
[330827398,1719849031763,-317.632665,0.0001392,2]
[330827399,1719849031774,-275.29,0.00013973,2]
[330827400,1719849031784,-2000.0,0.00013973,3]
[330827401,1719849031794,-197.03925798,0.0001399,2]
[330827402,1719849031804,-420.0,0.00013991,2]
[330827403,1719849031815,-1095.28442803,0.00013999,5]
[330827404,1719849031825,-497.72822381,0.00013999,2]
[330827405,1719849031835,-500.0,0.00013999,2]
[330827406,1719849031844,-596.28018509,0.00013999,2]
[330827407,1719849031855,-500.0,0.00013999,2]
[330827408,1719849031864,-500.0,0.00013999,2]
[330827410,1719849031874,-500.0,0.00013999,2]
[330827412,1719849031884,-500.0,0.00013999,2]
[330827413,1719849031895,-500.0,0.00013999,2]
[330827414,1719849031907,-500.0,0.00013999,2]
[330827415,1719849031917,-500.0,0.00013999,2]
[330827416,1719849031928,-500.0,0.00013999,2]
[330827417,1719849031940,-500.0,0.00013999,2]